[Event "Early-Titled-Tuesday-Blitz-March-12-2024"]
[Site "Chess.com"]
[Date "2024.03.12"]
[Round "5"]
[White "Actuary44"]
[Black "scrambleyourbrain"]
[Result "0-1"]
[WhiteElo "2516"]
[BlackElo "2391"]
[TimeControl "180+1"]
[EndTime "8:56:26 PDT"]
[Termination "scrambleyourbrain won by checkmate"]

1. e4 {[%clk 0:03:00.9]} 1... e5 {[%clk 0:02:59.7]} 2. d4 {[%clk 0:03:00.6]}
2... exd4 {[%clk 0:02:59.3]} 3. c3 {[%clk 0:03:01.1]} 3... dxc3 {[%clk
0:02:57.7]} 4. Bc4 {[%clk 0:03:01.3]} 4... d6 {[%clk 0:02:50.8]} 5. Qb3 {[%clk
0:02:59.2]} 5... Qe7 {[%clk 0:02:42.5]} 6. Nxc3 {[%clk 0:02:58.1]} 6... Nc6
{[%clk 0:02:42.3]} 7. Nge2 {[%clk 0:02:55.1]} 7... Nf6 {[%clk 0:02:35.4]} 8. Bg5
{[%clk 0:02:53.8]} 8... Ne5 {[%clk 0:02:15.3]} 9. Nd5 {[%clk 0:02:21.8]} 9...
Qd8 {[%clk 0:02:14.5]} 10. O-O {[%clk 0:02:14.8]} 10... Be7 {[%clk 0:02:10.3]}
11. Nxe7 {[%clk 0:02:11.9]} 11... Qxe7 {[%clk 0:02:10.1]} 12. Nc3 {[%clk
0:02:07.3]} 12... c6 {[%clk 0:02:02.8]} 13. Be2 {[%clk 0:02:06.7]} 13... h6
{[%clk 0:01:59.5]} 14. Bh4 {[%clk 0:02:06.3]} 14... Ng6 {[%clk 0:01:58.9]} 15.
Bg3 {[%clk 0:02:02.2]} 15... O-O {[%clk 0:01:57.6]} 16. f3 {[%clk 0:02:01.6]}
16... Rd8 {[%clk 0:01:56.2]} 17. Rad1 {[%clk 0:01:59.9]} 17... Be6 {[%clk
0:01:56.3]} 18. Qc2 {[%clk 0:01:59.9]} 18... d5 {[%clk 0:01:55.4]} 19. e5 {[%clk
0:01:57]} 19... Nd7 {[%clk 0:01:55.1]} 20. f4 {[%clk 0:01:57.1]} 20... Qc5+
{[%clk 0:01:41.8]} 21. Bf2 {[%clk 0:01:51.1]} 21... Qe7 {[%clk 0:01:32.7]} 22.
f5 {[%clk 0:01:47.4]} 22... Ngxe5 {[%clk 0:01:32.5]} 23. fxe6 {[%clk 0:01:46.5]}
23... Qxe6 {[%clk 0:01:32.9]} 24. Rde1 {[%clk 0:01:43.8]} 24... f6 {[%clk
0:01:26.8]} 25. Bd3 {[%clk 0:01:40.6]} 25... Qg4 {[%clk 0:01:20.1]} 26. Bf5
{[%clk 0:01:38.7]} 26... Nf3+ {[%clk 0:01:13.7]} 27. Kh1 {[%clk 0:01:35.6]}
27... Nxe1 {[%clk 0:01:14.4]} 28. Rxe1 {[%clk 0:01:13]} 28... Qf4 {[%clk
0:01:00.9]} 29. Bg3 {[%clk 0:01:06.6]} 29... Qg5 {[%clk 0:01:00.8]} 30. Re7
{[%clk 0:00:47.2]} 30... Nf8 {[%clk 0:00:57.5]} 31. Rxb7 {[%clk 0:00:40.7]}
31... d4 {[%clk 0:00:46.9]} 32. Ne2 {[%clk 0:00:40.6]} 32... Qe3 {[%clk
0:00:43.4]} 33. Qd3 {[%clk 0:00:37.7]} 33... Re8 {[%clk 0:00:35.4]} 34. Ng1
{[%clk 0:00:17.8]} 34... Qxd3 {[%clk 0:00:27.3]} 35. Bxd3 {[%clk 0:00:18.7]}
35... Re3 {[%clk 0:00:25.4]} 36. Bc4+ {[%clk 0:00:18.5]} 36... Kh8 {[%clk
0:00:25.5]} 37. Bf2 {[%clk 0:00:18.6]} 37... Re4 {[%clk 0:00:25.8]} 38. Bd3
{[%clk 0:00:18.1]} 38... Rf4 {[%clk 0:00:26.1]} 39. Bg3 {[%clk 0:00:17.7]} 39...
Rg4 {[%clk 0:00:25.2]} 40. Bf5 {[%clk 0:00:13.6]} 40... Rg5 {[%clk 0:00:24.2]}
41. Bd3 {[%clk 0:00:11.6]} 41... Rc5 {[%clk 0:00:20.7]} 42. h4 {[%clk 0:00:10]}
42... a5 {[%clk 0:00:17.5]} 43. Nh3 {[%clk 0:00:09.9]} 43... Re8 {[%clk
0:00:16.6]} 44. Nf4 {[%clk 0:00:09.9]} 44... Re3 {[%clk 0:00:15.7]} 45. Kh2
{[%clk 0:00:10.2]} 45... g5 {[%clk 0:00:11.5]} 46. Rb8 {[%clk 0:00:04.8]} 46...
gxf4 {[%clk 0:00:09.3]} 47. Bxf4 {[%clk 0:00:05.5]} 47... Kg7 {[%clk 0:00:06.4]}
48. Bxe3 {[%clk 0:00:02.4]} 48... dxe3 {[%clk 0:00:06.6]} 49. Re8 {[%clk
0:00:03.2]} 49... Re5 {[%clk 0:00:06.9]} 50. Rxe5 {[%clk 0:00:03]} 50... fxe5
{[%clk 0:00:07.7]} 51. Kg3 {[%clk 0:00:03.7]} 51... Ne6 {[%clk 0:00:08.1]} 52.
Kf3 {[%clk 0:00:04.3]} 52... Nc5 {[%clk 0:00:07.7]} 53. Be4 {[%clk 0:00:02.8]}
53... Nxe4 {[%clk 0:00:07.4]} 54. Kxe3 {[%clk 0:00:03.4]} 54... Nd6 {[%clk
0:00:06.9]} 55. Kd3 {[%clk 0:00:03.4]} 55... Kf6 {[%clk 0:00:07.2]} 56. Ke3
{[%clk 0:00:03.9]} 56... Kf5 {[%clk 0:00:07.6]} 57. Kf3 {[%clk 0:00:04.4]} 57...
h5 {[%clk 0:00:08.1]} 58. Ke3 {[%clk 0:00:04.9]} 58... Kg4 {[%clk 0:00:08.2]}
59. b4 {[%clk 0:00:03.9]} 59... axb4 {[%clk 0:00:07.9]} 60. Kd3 {[%clk
0:00:04.5]} 60... c5 {[%clk 0:00:07.7]} 61. a4 {[%clk 0:00:04.2]} 61... bxa3
{[%clk 0:00:07.5]} 62. Kc3 {[%clk 0:00:04.8]} 62... e4 {[%clk 0:00:08.2]} 63.
Kb3 {[%clk 0:00:05.4]} 63... e3 {[%clk 0:00:08.9]} 64. Ka2 {[%clk 0:00:06.1]}
64... e2 {[%clk 0:00:09.7]} 65. Kxa3 {[%clk 0:00:06.8]} 65... e1=Q {[%clk
0:00:10.3]} 66. Kb2 {[%clk 0:00:07.7]} 66... Qb4+ {[%clk 0:00:10.5]} 67. Kc2
{[%clk 0:00:08]} 67... Nc4 {[%clk 0:00:11.2]} 68. Kd3 {[%clk 0:00:08.9]} 68...
Qb3+ {[%clk 0:00:10.7]} 69. Ke2 {[%clk 0:00:09.8]} 69... Qe3+ {[%clk 0:00:10.8]}
70. Kf1 {[%clk 0:00:10.7]} 70... Nd2# {[%clk 0:00:10.7]} 0-1

[Event "Early-Titled-Tuesday-Blitz-March-12-2024"]
[Site "Chess.com"]
[Date "2024.03.12"]
[Round "5"]
[White "Fighterman91"]
[Black "Dyadya81"]
[Result "0-1"]
[WhiteElo "2770"]
[BlackElo "2917"]
[TimeControl "180+1"]
[EndTime "8:56:27 PDT"]
[Termination "Dyadya81 won on time"]

1. d4 {[%clk 0:02:52.4]} 1... d5 {[%clk 0:02:58.3]} 2. Nf3 {[%clk 0:02:52.7]}
2... Nc6 {[%clk 0:02:56.5]} 3. c3 {[%clk 0:02:50.2]} 3... Bf5 {[%clk 0:02:53.4]}
4. Qb3 {[%clk 0:02:48.8]} 4... Rb8 {[%clk 0:02:50.5]} 5. Bf4 {[%clk 0:02:47.2]}
5... e6 {[%clk 0:02:49.9]} 6. Nbd2 {[%clk 0:02:46.8]} 6... Bd6 {[%clk
0:02:47.3]} 7. e3 {[%clk 0:02:47]} 7... Nf6 {[%clk 0:02:45]} 8. Be2 {[%clk
0:02:42.8]} 8... O-O {[%clk 0:02:44.8]} 9. O-O {[%clk 0:02:42]} 9... Ne7 {[%clk
0:02:39.3]} 10. Ne5 {[%clk 0:02:33.9]} 10... b6 {[%clk 0:02:29.4]} 11. Qa4
{[%clk 0:02:26]} 11... a5 {[%clk 0:02:26.4]} 12. c4 {[%clk 0:02:23.1]} 12... c5
{[%clk 0:02:20.7]} 13. Bg3 {[%clk 0:02:05]} 13... cxd4 {[%clk 0:02:15]} 14. exd4
{[%clk 0:02:05.9]} 14... dxc4 {[%clk 0:02:10.9]} 15. Bxc4 {[%clk 0:01:53.2]}
15... Bxe5 {[%clk 0:02:06.8]} 16. Bxe5 {[%clk 0:01:52.4]} 16... Rc8 {[%clk
0:02:05.5]} 17. Ba6 {[%clk 0:01:18.4]} 17... Ra8 {[%clk 0:01:57.6]} 18. Bb7
{[%clk 0:01:17.1]} 18... Ra7 {[%clk 0:01:57.9]} 19. Bf3 {[%clk 0:01:16.5]} 19...
Nfd5 {[%clk 0:01:51.3]} 20. Rac1 {[%clk 0:01:15.9]} 20... f6 {[%clk 0:01:48.2]}
21. Bg3 {[%clk 0:01:15.6]} 21... Qd7 {[%clk 0:01:45.3]} 22. Qxd7 {[%clk
0:01:09.4]} 22... Rxd7 {[%clk 0:01:46.2]} 23. Rfe1 {[%clk 0:01:10]} 23... g5
{[%clk 0:01:38.1]} 24. a3 {[%clk 0:01:06.7]} 24... Kg7 {[%clk 0:01:35.2]} 25. h3
{[%clk 0:01:01.8]} 25... Rfd8 {[%clk 0:01:29.2]} 26. Nc4 {[%clk 0:00:56.5]}
26... Kg6 {[%clk 0:01:25.4]} 27. Bh2 {[%clk 0:00:51.2]} 27... Rc8 {[%clk
0:01:14.6]} 28. Nd6 {[%clk 0:00:34.1]} 28... Rcd8 {[%clk 0:01:05.3]} 29. g4
{[%clk 0:00:22.3]} 29... Rxd6 {[%clk 0:00:48.5]} 30. gxf5+ {[%clk 0:00:21.9]}
30... Nxf5 {[%clk 0:00:46.7]} 31. Bxd6 {[%clk 0:00:22.8]} 31... Rxd6 {[%clk
0:00:46]} 32. Bxd5 {[%clk 0:00:15.7]} 32... Rxd5 {[%clk 0:00:43.6]} 33. Rxe6
{[%clk 0:00:11.6]} 33... Nxd4 {[%clk 0:00:40.5]} 34. Re3 {[%clk 0:00:11.2]}
34... Nf5 {[%clk 0:00:35.9]} 35. Re2 {[%clk 0:00:11.7]} 35... a4 {[%clk
0:00:33.2]} 36. Kf1 {[%clk 0:00:09.6]} 36... b5 {[%clk 0:00:31.2]} 37. Ke1
{[%clk 0:00:08.8]} 37... Nh4 {[%clk 0:00:29]} 38. Rc3 {[%clk 0:00:06.5]} 38...
h5 {[%clk 0:00:24.7]} 39. Rd2 {[%clk 0:00:06]} 39... Re5+ {[%clk 0:00:23.7]} 40.
Kf1 {[%clk 0:00:06]} 40... g4 {[%clk 0:00:23.5]} 41. hxg4 {[%clk 0:00:06]} 41...
hxg4 {[%clk 0:00:24.4]} 42. Re3 {[%clk 0:00:06.4]} 42... Rg5 {[%clk 0:00:22.4]}
43. Re8 {[%clk 0:00:05.2]} 43... Kf7 {[%clk 0:00:20]} 44. Rh8 {[%clk 0:00:05.5]}
44... Nf3 {[%clk 0:00:19.9]} 45. Rd7+ {[%clk 0:00:05.6]} 45... Ke6 {[%clk
0:00:20.6]} 46. Rd1 {[%clk 0:00:04.7]} 46... Rc5 {[%clk 0:00:17.6]} 47. Re8+
{[%clk 0:00:04.5]} 47... Kf5 {[%clk 0:00:18.1]} 48. Re2 {[%clk 0:00:04.8]} 48...
Kf4 {[%clk 0:00:17]} 49. Kg2 {[%clk 0:00:04.5]} 49... Rh5 {[%clk 0:00:17.4]} 50.
Rh1 {[%clk 0:00:03.7]} 50... Rc5 {[%clk 0:00:16.2]} 51. Rd1 {[%clk 0:00:03.6]}
51... f5 {[%clk 0:00:16.6]} 52. Rh1 {[%clk 0:00:03.8]} 52... Rd5 {[%clk
0:00:15.1]} 53. Rc1 {[%clk 0:00:03.8]} 53... Nh4+ {[%clk 0:00:15.5]} 54. Kf1
{[%clk 0:00:03.7]} 54... Nf3 {[%clk 0:00:14.7]} 55. Kg2 {[%clk 0:00:04.2]} 55...
Ne5 {[%clk 0:00:15.1]} 56. Rb1 {[%clk 0:00:03.3]} 56... Rd3 {[%clk 0:00:13.8]}
57. Rbe1 {[%clk 0:00:02.7]} 57... Nf3 {[%clk 0:00:14.3]} 58. Rc1 {[%clk
0:00:03.4]} 58... Nh4+ {[%clk 0:00:14.4]} 59. Kh2 {[%clk 0:00:04]} 59... Rh3+
{[%clk 0:00:14.5]} 60. Kg1 {[%clk 0:00:03.8]} 60... Nf3+ {[%clk 0:00:15.4]} 61.
Kg2 {[%clk 0:00:03.7]} 61... Rh2+ {[%clk 0:00:15.3]} 62. Kf1 {[%clk 0:00:04.3]}
62... Rh1+ {[%clk 0:00:15.9]} 63. Kg2 {[%clk 0:00:04.3]} 63... Rxc1 {[%clk
0:00:16.8]} 0-1

[Event "Early-Titled-Tuesday-Blitz-March-12-2024"]
[Site "Chess.com"]
[Date "2024.03.12"]
[Round "5"]
[White "omeganebulapegasus"]
[Black "suspiciumchess"]
[Result "1-0"]
[WhiteElo "2806"]
[BlackElo "2402"]
[TimeControl "180+1"]
[EndTime "8:56:33 PDT"]
[Termination "omeganebulapegasus won by checkmate"]

1. e4 {[%clk 0:03:00.9]} 1... g6 {[%clk 0:02:59.8]} 2. d4 {[%clk 0:03:00.5]}
2... Bg7 {[%clk 0:03:00.7]} 3. Nf3 {[%clk 0:03:00.5]} 3... d6 {[%clk 0:02:56.7]}
4. h3 {[%clk 0:02:59.6]} 4... Nf6 {[%clk 0:02:56.1]} 5. Bd3 {[%clk 0:02:59.6]}
5... O-O {[%clk 0:02:53]} 6. O-O {[%clk 0:02:59.3]} 6... Nbd7 {[%clk 0:02:51.8]}
7. c3 {[%clk 0:02:56.8]} 7... c5 {[%clk 0:02:47.3]} 8. Re1 {[%clk 0:02:54.7]}
8... Rb8 {[%clk 0:02:44.8]} 9. Na3 {[%clk 0:02:46.3]} 9... a6 {[%clk 0:02:44]}
10. e5 {[%clk 0:02:45.1]} 10... Ne8 {[%clk 0:02:42.1]} 11. e6 {[%clk 0:02:38.3]}
11... fxe6 {[%clk 0:02:41]} 12. Ng5 {[%clk 0:02:38.5]} 12... Nc7 {[%clk
0:02:41.3]} 13. Nxh7 {[%clk 0:02:31.4]} 13... Kxh7 {[%clk 0:02:24.2]} 14. Qh5+
{[%clk 0:02:30.8]} 14... Kg8 {[%clk 0:02:24.8]} 15. Bxg6 {[%clk 0:02:31.4]}
15... Nf6 {[%clk 0:02:25.3]} 16. Qh4 {[%clk 0:02:30.1]} 16... Bd7 {[%clk
0:01:46.1]} 17. dxc5 {[%clk 0:02:30.1]} 17... Be8 {[%clk 0:01:37.1]} 18. Bc2
{[%clk 0:02:30.1]} 18... e5 {[%clk 0:01:12.2]} 19. Bg5 {[%clk 0:02:17.7]} 19...
Ne6 {[%clk 0:01:11.2]} 20. Bb3 {[%clk 0:02:16.2]} 20... d5 {[%clk 0:00:49.5]}
21. Rxe5 {[%clk 0:02:15.4]} 21... Nxg5 {[%clk 0:00:46.7]} 22. Rxg5 {[%clk
0:02:15.2]} 22... e6 {[%clk 0:00:47.1]} 23. Re1 {[%clk 0:02:06.2]} 23... Qe7
{[%clk 0:00:44.8]} 24. Qh6 {[%clk 0:01:54.5]} 24... Bd7 {[%clk 0:00:20.9]} 25.
Re3 {[%clk 0:01:44.5]} 25... Ne4 {[%clk 0:00:21.1]} 26. Rg6 {[%clk 0:01:11.8]}
26... Rf6 {[%clk 0:00:16.2]} 27. Bc2 {[%clk 0:01:03.1]} 27... Rbf8 {[%clk
0:00:11]} 28. Bxe4 {[%clk 0:00:58.7]} 28... dxe4 {[%clk 0:00:11.9]} 29. Nc4
{[%clk 0:00:52.9]} 29... Rxg6 {[%clk 0:00:09.7]} 30. Qxg6 {[%clk 0:00:53.8]}
30... Qxc5 {[%clk 0:00:08.7]} 31. Qxe4 {[%clk 0:00:44.3]} 31... b5 {[%clk
0:00:04.9]} 32. Ne5 {[%clk 0:00:39.8]} 32... Bxe5 {[%clk 0:00:02.3]} 33. Qxe5
{[%clk 0:00:40.7]} 33... Qxe5 {[%clk 0:00:02.4]} 34. Rxe5 {[%clk 0:00:41.6]}
34... Kf7 {[%clk 0:00:03]} 35. f3 {[%clk 0:00:38.5]} 35... Bc6 {[%clk
0:00:03.4]} 36. Kf2 {[%clk 0:00:39]} 36... Bd5 {[%clk 0:00:03.9]} 37. b3 {[%clk
0:00:37.4]} 37... Kf6 {[%clk 0:00:04.5]} 38. Re3 {[%clk 0:00:35.6]} 38... a5
{[%clk 0:00:04.5]} 39. Re2 {[%clk 0:00:20.7]} 39... a4 {[%clk 0:00:03.6]} 40.
bxa4 {[%clk 0:00:21.6]} 40... bxa4 {[%clk 0:00:04.5]} 41. Ke3 {[%clk 0:00:22.1]}
41... Rb8 {[%clk 0:00:04.1]} 42. Kd4 {[%clk 0:00:19.9]} 42... a3 {[%clk
0:00:04.6]} 43. c4 {[%clk 0:00:19.5]} 43... Rb4 {[%clk 0:00:04.9]} 44. Re3
{[%clk 0:00:18.9]} 44... Rxc4+ {[%clk 0:00:04.9]} 45. Kd3 {[%clk 0:00:19.5]}
45... Rb4 {[%clk 0:00:04.3]} 46. Re2 {[%clk 0:00:19.4]} 46... Rb2 {[%clk
0:00:04.5]} 47. Rxb2 {[%clk 0:00:19.8]} 47... axb2 {[%clk 0:00:05.1]} 48. Kc2
{[%clk 0:00:20.7]} 48... Ke5 {[%clk 0:00:05.3]} 49. Kxb2 {[%clk 0:00:19.3]}
49... Kf4 {[%clk 0:00:06.2]} 50. a4 {[%clk 0:00:19.4]} 50... Kg3 {[%clk
0:00:06.7]} 51. a5 {[%clk 0:00:19.5]} 51... Kxg2 {[%clk 0:00:07.3]} 52. h4
{[%clk 0:00:17.2]} 52... Kxf3 {[%clk 0:00:06.7]} 53. h5 {[%clk 0:00:17.1]} 53...
e5 {[%clk 0:00:06.9]} 54. h6 {[%clk 0:00:16.5]} 54... Be4 {[%clk 0:00:03.4]} 55.
a6 {[%clk 0:00:16.8]} 55... Bf5 {[%clk 0:00:02.5]} 56. a7 {[%clk 0:00:17.1]}
56... e4 {[%clk 0:00:03.4]} 57. a8=Q {[%clk 0:00:17.5]} 57... Kf4 {[%clk
0:00:03.3]} 58. Qf8 {[%clk 0:00:17.6]} 58... Kg5 {[%clk 0:00:03.4]} 59. Qxf5+
{[%clk 0:00:17.8]} 59... Kxf5 {[%clk 0:00:03]} 60. h7 {[%clk 0:00:18.5]} 60...
Ke5 {[%clk 0:00:03.9]} 61. h8=Q+ {[%clk 0:00:19.4]} 61... Kf4 {[%clk 0:00:04.2]}
62. Kc3 {[%clk 0:00:19.8]} 62... e3 {[%clk 0:00:05.1]} 63. Qd4+ {[%clk
0:00:18.8]} 63... Kf3 {[%clk 0:00:06]} 64. Kd3 {[%clk 0:00:19.3]} 64... e2
{[%clk 0:00:05.1]} 65. Qe3+ {[%clk 0:00:20.2]} 65... Kg4 {[%clk 0:00:04.4]} 66.
Qxe2+ {[%clk 0:00:21.1]} 66... Kf4 {[%clk 0:00:05.3]} 67. Qf2+ {[%clk
0:00:21.3]} 67... Kg4 {[%clk 0:00:05.7]} 68. Ke4 {[%clk 0:00:20.9]} 68... Kh3
{[%clk 0:00:05.7]} 69. Qg1 {[%clk 0:00:21.1]} 69... Kh4 {[%clk 0:00:05.5]} 70.
Kf4 {[%clk 0:00:21.1]} 70... Kh5 {[%clk 0:00:06.3]} 71. Qg5# {[%clk 0:00:21.2]}
1-0

[Event "Early-Titled-Tuesday-Blitz-March-12-2024"]
[Site "Chess.com"]
[Date "2024.03.12"]
[Round "5"]
[White "Resignify"]
[Black "Gryffindorac8"]
[Result "0-1"]
[WhiteElo "2247"]
[BlackElo "2388"]
[TimeControl "180+1"]
[EndTime "8:56:35 PDT"]
[Termination "Gryffindorac8 won by checkmate"]

1. e4 {[%clk 0:03:00.9]} 1... c5 {[%clk 0:02:59.3]} 2. Nc3 {[%clk 0:02:57.4]}
2... d6 {[%clk 0:02:58.4]} 3. g3 {[%clk 0:02:57.7]} 3... g6 {[%clk 0:02:56.7]}
4. d3 {[%clk 0:02:57.2]} 4... Bg7 {[%clk 0:02:56.4]} 5. Bg2 {[%clk 0:02:57.5]}
5... Nc6 {[%clk 0:02:55.5]} 6. f4 {[%clk 0:02:56.7]} 6... e6 {[%clk 0:02:55.6]}
7. Nf3 {[%clk 0:02:56.7]} 7... Nge7 {[%clk 0:02:55.3]} 8. O-O {[%clk 0:02:56.4]}
8... O-O {[%clk 0:02:51.7]} 9. Be3 {[%clk 0:02:54.5]} 9... Nd4 {[%clk
0:02:49.4]} 10. e5 {[%clk 0:02:52]} 10... Nef5 {[%clk 0:02:28]} 11. Bf2 {[%clk
0:02:51.8]} 11... Nxf3+ {[%clk 0:02:20]} 12. Qxf3 {[%clk 0:02:49]} 12... Nd4
{[%clk 0:02:17]} 13. Qd1 {[%clk 0:02:47.4]} 13... dxe5 {[%clk 0:02:07.6]} 14.
fxe5 {[%clk 0:02:48.3]} 14... Bxe5 {[%clk 0:02:03.6]} 15. Ne4 {[%clk 0:02:48.3]}
15... Bd7 {[%clk 0:01:40.7]} 16. c3 {[%clk 0:02:49.2]} 16... Nf5 {[%clk
0:01:35.6]} 17. Nxc5 {[%clk 0:02:40.8]} 17... Bc6 {[%clk 0:01:29.9]} 18. Ne4
{[%clk 0:02:36.5]} 18... Bg7 {[%clk 0:01:24.1]} 19. Rb1 {[%clk 0:02:13.7]} 19...
Qc7 {[%clk 0:01:22.3]} 20. g4 {[%clk 0:02:04.9]} 20... Nd6 {[%clk 0:01:12.1]}
21. Bg3 {[%clk 0:01:59.1]} 21... Qb6+ {[%clk 0:01:09.1]} 22. Bf2 {[%clk
0:01:59]} 22... Qd8 {[%clk 0:01:06.5]} 23. Bc5 {[%clk 0:01:40.7]} 23... Bxe4
{[%clk 0:00:55.6]} 24. dxe4 {[%clk 0:01:39.7]} 24... Be5 {[%clk 0:00:54.3]} 25.
Bf2 {[%clk 0:00:51.4]} 25... Qc7 {[%clk 0:00:50.9]} 26. Qf3 {[%clk 0:00:48.7]}
26... Rad8 {[%clk 0:00:48.3]} 27. h3 {[%clk 0:00:46.2]} 27... Nc4 {[%clk
0:00:45.9]} 28. Be1 {[%clk 0:00:33.2]} 28... Nd2 {[%clk 0:00:43.2]} 29. Bxd2
{[%clk 0:00:33]} 29... Rxd2 {[%clk 0:00:44.1]} 30. Kh1 {[%clk 0:00:19.4]} 30...
Rfd8 {[%clk 0:00:38.2]} 31. Rbd1 {[%clk 0:00:15]} 31... R8d3 {[%clk 0:00:24.8]}
32. Rxd2 {[%clk 0:00:09]} 32... Rxd2 {[%clk 0:00:19.8]} 33. Rf2 {[%clk
0:00:08.3]} 33... Rd7 {[%clk 0:00:15.4]} 34. Rf1 {[%clk 0:00:07.1]} 34... Qc4
{[%clk 0:00:14.1]} 35. a3 {[%clk 0:00:03.2]} 35... Qd3 {[%clk 0:00:11.8]} 36.
Qxd3 {[%clk 0:00:02.6]} 36... Rxd3 {[%clk 0:00:12.7]} 37. Rf2 {[%clk 0:00:01.9]}
37... Rd1+ {[%clk 0:00:09.4]} 38. Bf1 {[%clk 0:00:02.3]} 38... Bg3 {[%clk
0:00:07.2]} 39. Rf3 {[%clk 0:00:02.9]} 39... Be1 {[%clk 0:00:03.4]} 40. Kg2
{[%clk 0:00:02.8]} 40... Rd2+ {[%clk 0:00:02.1]} 41. Kg1 {[%clk 0:00:03.3]}
41... Rxb2 {[%clk 0:00:01.3]} 42. Rd3 {[%clk 0:00:03.6]} 42... Bd2 {[%clk
0:00:01.3]} 43. a4 {[%clk 0:00:02]} 43... Rc2 {[%clk 0:00:01.9]} 44. c4 {[%clk
0:00:01.9]} 44... Bc3 {[%clk 0:00:02.4]} 45. Rd8+ {[%clk 0:00:01.5]} 45... Kg7
{[%clk 0:00:02.5]} 46. Rd7 {[%clk 0:00:02.1]} 46... Rc1 {[%clk 0:00:03.1]} 47.
Kg2 {[%clk 0:00:02.2]} 47... Ba5 {[%clk 0:00:03.7]} 48. Kf3 {[%clk 0:00:02.6]}
48... b6 {[%clk 0:00:04.4]} 49. Rxa7 {[%clk 0:00:02.2]} 49... Rc3+ {[%clk
0:00:04.8]} 50. Ke2 {[%clk 0:00:01.7]} 50... Bb4 {[%clk 0:00:05.3]} 51. Kf2
{[%clk 0:00:01.9]} 51... Bc5+ {[%clk 0:00:05.8]} 52. Kg2 {[%clk 0:00:02.5]}
52... Ra3 {[%clk 0:00:06.1]} 53. Rc7 {[%clk 0:00:02.7]} 53... Kf6 {[%clk
0:00:06.6]} 54. Ra7 {[%clk 0:00:02.7]} 54... g5 {[%clk 0:00:07.1]} 55. h4 {[%clk
0:00:02.6]} 55... gxh4 {[%clk 0:00:06.9]} 56. Be2 {[%clk 0:00:03]} 56... h3+
{[%clk 0:00:07.3]} 57. Kh2 {[%clk 0:00:02.9]} 57... Bd6+ {[%clk 0:00:07.8]} 58.
Kh1 {[%clk 0:00:03.2]} 58... h2 {[%clk 0:00:08.3]} 59. Kg2 {[%clk 0:00:03]}
59... Ra1 {[%clk 0:00:08.3]} 60. Bf1 {[%clk 0:00:03.3]} 60... Rxf1 {[%clk
0:00:08.3]} 61. Kxf1 {[%clk 0:00:03.9]} 61... h1=Q+ {[%clk 0:00:08.5]} 62. Ke2
{[%clk 0:00:04.6]} 62... Qxe4+ {[%clk 0:00:08.7]} 63. Kd2 {[%clk 0:00:04.8]}
63... Bb4+ {[%clk 0:00:08.6]} 64. Kc1 {[%clk 0:00:04.4]} 64... Qe3+ {[%clk
0:00:08.6]} 65. Kc2 {[%clk 0:00:04.3]} 65... Qc3+ {[%clk 0:00:08.7]} 66. Kd1
{[%clk 0:00:04.3]} 66... Qd2# {[%clk 0:00:08.8]} 0-1